[Event "30th Abu Dhabi Festival A-Open 2024"]
[Site "Abu Dhabi"]
[Date "2024.08.24"]
[Round "9.11"]
[White "Talgatov, Nazar"]
[Black "Bolys, Tolegen"]
[Result "1-0"]
[ECO "B01"]
[WhiteElo "2171"]
[BlackElo "1911"]
[Annotator "RC"]
[PlyCount "91"]
[EventDate "2024.08.15"]
[EventType "swiss"]
[EventCountry "UAE"]
[SourceTitle "playchess.com"]
[Source "ChessBase"]
[SourceQuality "1"]
[TimeControl "5400+30"]

1. e4 {[%emt 0:00:29]} d5 {[%emt 0:30:17]} 2. exd5 {[%emt 0:00:43]} Qxd5 {[%emt 0:00:04]} 3. Nc3 {[%emt 0:00:40]} Qe5+ {[%emt 0:00:04]} 4. Nge2 {[%emt 0:00:35]} Nf6 {[%emt 0:02:23]} 5. d4 {[%emt 0:00:22]} Qa5 {[%emt 0:00:27]} 6. g3 {[%emt 0:03:50]} c6 {[%emt 0:06:12]} 7. Bg2 {[%emt 0:00:17]} Bf5 {[%emt 0:00:35]} 8. O-O {[%emt 0:04:38]} e6 {[%emt 0:00:24]} 9. Bd2 {[%emt 0:06:24]} Qd8 {[%emt 0:00:41]} 10. Na4 {[%emt 0:01:44]} Nbd7 {[%emt 0:01:05]} 11. c4 {[%emt 0:00:31]} Be7 {[%emt 0:10:43]} 12. Nac3 {[%emt 0:00:57]} O-O {[%emt 0:03:59]} 13. Re1 {[%emt 0:00:06]} Nb6 {[%emt 0:09:24]} 14. b3 {[%emt 0:00:34]} h6 {[%emt 0:00:06]} 15. Bf4 {[%emt 0:01:20]} a5 {[%emt 0:01:39]} 16. Qd2 {[%emt 0:09:03]} Qc8 {[%emt 0:06:19]} 17. h3 {[%emt 0:03:08]} Rd8 {[%emt 0:24:38]} 18. g4 {[%emt 0:02:52]} Bg6 {[%emt 0:00:00]} 19. Qe3 {[%emt 0:00:22]} Ra6 {[%emt 0:00:00]} 20. Bg3 {[%emt 0:02:09]} Bh7 {[%emt 0:01:30]} 21. Nf4 {[%emt 0:08:49]} Bf8 {[%emt 0:00:00]} 22. Rad1 {[%emt 0:00:35]} Bb4 {[%emt 0:01:00]} 23. Re2 {[%emt 0:51:52]} Re8 {[%emt 0:00:00]} 24. Ne4 {[%emt 0:00:00]} Nbd7 {[%emt 0:00:00]} 25. Nxf6+ {[%emt 0:00:00]} Nxf6 {[%emt 0:00:00]} 26. Nd3 {[%emt 0:00:00]} Bf8 {[%emt 0:00:00]} 27. Nc5 {[%emt 0:00:00]} Ra7 {[%emt 0:00:00]} 28. Bf3 {[%emt 0:00:00]} Rd8 {[%emt 0:00:00]} 29. Red2 {[%emt 0:00:00]} b6 {[%emt 0:00:00]} 30. Nd3 {[%emt 0:00:00]} Bxd3 {[%emt 0:00:42]} 31. Rxd3 {[%emt 0:00:00]} a4 {[%emt 0:02:06]} 32. h4 {[%emt 0:00:00]} axb3 {[%emt 0:00:02]} 33. axb3 {[%emt 0:00:00]} Nh7 {[%emt 0:01:17]} 34. Kg2 {[%emt 0:00:00]} Re7 {[%emt 0:00:48]} 35. Ra1 {[%emt 0:00:00]} Qd7 {[%emt 0:00:25]} 36. Rad1 {[%emt 0:00:00]} Qe8 {[%emt 0:00:24]} 37. d5 {[%emt 0:00:00]} c5 {[%emt 0:01:10]} 38. dxe6 {[%emt 0:00:00]} Rxd3 {[%emt 0:00:30]} 39. exf7+ {[%emt 0:00:00]} Qxf7 {[%emt 0:00:10]} 40. Qxd3 {[%emt 0:00:00]} Kh8 {[%emt 0:00:06]} 41. Qd8 {[%emt 0:00:00]} Qf6 {[%emt 0:01:16]} 42. Qb8 {[%emt 0:00:00]} g5 {[%emt 0:00:14]} 43. h5 {[%emt 0:00:00]} Kg7 {[%emt 0:00:15]} 44. Rd6 {[%emt 0:00:00]} Re8 {[%emt 0:00:56]} 45. Rxf6 {[%emt 0:00:00]} Rxb8 {[%emt 0:00:01]} 46. Rg6+ {[%emt 0:00:00]} 1-0